Workbook

Sheet 1-неделя
F2: ДВУХНЕДЕЛЬНОЕ МЕНЮ ДЛЯ ОБУЧАЮЩИХСЯ МБОУ "БОЛЬШЕКИБЯЧИНСКАЯ СОШ"
A3: № рец. | B3: Прием пищи, наименование блюда | F3: Масса порции | H3: Пищевые вещества (г) | K3: Энергетическая ценность (ккал) | L3: Витамины (мг) | P3: Минеральные вещества (мг) | T3: Масса продуктов блюда в бруттах, г | U3: Цена | V3: Сумма
H4: Б | I4: Ж | J4: У | L4: В1 | M4: С | N4: А | O4: Е | P4: Са | Q4: Р | R4: Мg | S4: Fe
A5: 1 | B5: 2 | F5: 3 | H5: 4 | I5: 5 | J5: 6 | K5: 7 | L5: 8 | M5: 9 | N5: 10 | O5: 11 | P5: 12 | Q5: 13 | R5: 14 | S5: 15 | T5: 16 | U5: 17 | V5: 18
B6: 1-я неделя
B7: 1-й день
B8: Завтрак
A9: 384/2013 Сб.рец. | B9: Каша овсяная молочная со сливочном маслом | F9: 150/5 | H9: 5.91 | I9: 7.22 | J9: 28.34 | K9: 186 | L9: 0.2 | M9: 0.86 | N9: 0.03 | O9: 0.5 | P9: 97.58 | Q9: 184.16 | R9: 50.87 | S9: 1.5
B10: Крупа овсяная | T10: 37 | U10: 43 | V10: =(T10*U10)/1000 -> 1.591
B11: Молоко | T11: 60 | U11: 42 | V11: =(T11*U11)/1000 -> 2.52
B12: Мед натуральный | T12: 4 | U12: 363 | V12: 1.452
B13: Масло сливочное | T13: 5 | U13: 429 | V13: 2.145
B14: Соль | T14: 1 | U14: 10.23 | V14: 0.010
B15: Итого | V15: =V10+V11+V12+V13+V14 -> 7.718
A16: 959/2013 Сб.рец. | B16: Какао с молоком | F16: 200 | H16: 3.21 | I16: 4.82 | J16: 17.94 | K16: 107 | L16: 0.04 | M16: 1.3 | N16: 0.02 | O16: 0.1 | P16: 120.46 | Q16: 102.9 | R16: 15.5 | S16: 0.28
B17: Какао-порошок | T17: 3 | U17: 605 | V17: =(T17*U17)/1000 -> 1.815
B18: Молоко | T18: 100 | U18: 42 | V18: =(T18*U18)/1000 -> 4.2
B19: Сахар | T19: 10 | U19: 51 | V19: 0.51
B20: Итого | V20: =V17+V18+V19 -> 6.525
B21: Хлеб в/с | F21: 40 | H21: 3.48 | I21: 0.6 | J21: 16 | K21: 83.6 | L21: 0.1 | M21: 0 | N21: 0 | O21: 0.66 | P21: 13.2 | Q21: 93.6 | R21: 26.4 | S21: 1.76 | T21: 40 | U21: 62 | V21: =(T21*U21)/1000 -> 2.480
B22: Итого за завтрак: | H22: =H9+H16+H21 -> 12.6 | I22: =I9+I16+I21 -> 12.64 | J22: 62.28 | K22: 376.6 | L22: 0.34 | M22: 2.16 | N22: 0.05 | O22: 1.26 | P22: 231.24 | Q22: 380.66 | R22: 92.77 | S22: 3.54 | V22: =V15+V20+V21 -> 16.723
B23: Второй завтрак
A24: 79/2013 Сб.рец. | B24: Салат из свежей капусты | F24: 60 | H24: 1.14 | I24: 3.05 | J24: 4.11 | K24: 45.2 | L24: 0.02 | M24: 21.16 | N24: 0 | O24: 1.39 | P24: 25.15 | Q24: 17.46 | R24: 9.55 | S24: 0.32
B25: Капуста свежая | T25: 58 | U25: 42 | V25: =(T25*U25)/1000 -> 2.436
B26: Соль | T26: 0.5 | U26: 10.23 | V26: =(T26*U26)/1000 -> 0.005
B27: Морковь | T27: 7 | U27: 42 | V27: 0.294
B28: Масло растительное | T28: 3 | U28: 146 | V28: 0.438
B29: Сахар | T29: 1 | U29: 51 | V29: 0.051
B30: Итого | V30: =V25+V26+V27+V28+V29 -> 3.224
A31: 414/2013 Сб.рец. | B31: Макароны отварные со слив.маслом | F31: 150/5 | H31: 5.8 | I31: 3.77 | J31: 36.71 | K31: 206 | L31: 0.13 | M31: 0 | N31: 0.02 | O31: 0.05 | P31: 14.95 | Q31: 63.73 | R31: 23.93 | S31: 0.81
B32: Макароны | T32: 53 | U32: 38 | V32: =T32*U32/1000 -> 2.014
B33: Масло сливочное | T33: 5 | U33: 429 | V33: =T33*U33/1000 -> 2.145
B34: Соль | T34: 1 | U34: 10.23 | V34: =T34*U34/1000 -> 0.010
B35: Итого | V35: =SUM(V32:V34) -> 4.169
A36: 618/2013 Сб.рец. | B36: Тефтели с мясом | F36: 50 | H36: 7.79 | I36: 7.04 | J36: 6.56 | K36: 120 | L36: 0.05 | M36: 1.68 | N36: 0.02 | O36: 0.8 | P36: 14.29 | Q36: 92.56 | R36: 16.5 | S36: 0.98
B37: Мясо без костей | T37: 32 | U37: 506 | V37: =(T37*U37)/1000 -> 16.192
B38: Хлеб пшеничный | T38: 7 | U38: 62 | V38: =(T38*U38)/1000 -> 0.434
B39: Лук репчатый | T39: 20 | U39: 42 | V39: 0.840
B40: Масло растительное | T40: 3 | U40: 146 | V40: 0.438
B41: Мука пшеничная | T41: 3 | U41: 31 | V41: 0.093
B42: Соль | T42: 1 | U42: 10.23 | V42: 0.010
B43: Яйцо | T43: 7 | U43: 165 | V43: 1.155
B44: Итого | V44: =SUM(V37:V43) -> 19.162
A45: 868/2013 Сб.рец. | B45: Компот из урюка | F45: 200 | H45: 0.22 | I45: 0 | J45: 9.47 | K45: 36.5 | L45: 0 | M45: 0.18 | N45: 0 | O45: 0.4 | P45: 9.87 | Q45: 6.78 | R45: 2.64 | S45: 0.54
B46: Урюк | T46: 10 | U46: 242 | V46: =(T46*U46)/1000 -> 2.420
B47: Сахар | T47: 10 | U47: 51 | V47: =(T47*U47)/1000 -> 0.510
B48: Итого | V48: =V46+V47 -> 2.930
B49: Хлеб р/ж | F49: 40 | H49: 2.64 | I49: 0.48 | J49: 14.12 | K49: 72.4 | L49: 0.08 | M49: 0 | N49: 0 | O49: 0.4 | P49: 14 | Q49: 63.2 | R49: 18.8 | S49: 1.56 | T49: 40 | U49: 62 | V49: =(T49*U49)/1000 -> 2.480
B50: Итого за второй завтрак: | H50: =H24+H31+H36+H45+H49 -> 17.59 | I50: =I24+I31+I36+I45+I49 -> 14.34 | J50: 70.97 | K50: 480.1 | L50: 0.28 | M50: 23.02 | N50: 0.04 | O50: 3.042 | P50: 78.26 | Q50: 243.73 | R50: 71.42 | S50: 4.21 | V50: =V30+V35+V44+V48+V49 -> 31.966
B51: ИТОГО ЗА 1 ДЕНЬ: | H51: =H22+H50 -> 30.19 | I51: 26.98 | J51: 133.25 | K51: 856.7 | L51: 0.62 | M51: 25.18 | N51: 0.09 | O51: 4.302 | P51: 309.5 | Q51: 624.39 | R51: 164.19 | S51: 7.75 | V51: =V22+V50 -> 48.689
B52: 2-й день
B53: Завтрак
A54: 847/2013 Сб.рец. | B54: Фрукты: яблоки | F54: 150 | H54: 0.6 | I54: 0.53 | J54: 13.73 | K54: 59.4 | L54: 0.04 | M54: 217.8 | N54: 0 | O54: 0.22 | P54: 21.12 | Q54: 14.52 | R54: 11.88 | S54: 2.9 | T54: 150 | U54: 120 | V54: =(T54*U54)/1000 -> 18.000
A55: 384/2013 Сб.рец. | B55: Каша манная молочная со слив.маслом | F55: 150/5 | H55: 5.21 | I55: 5.33 | J55: 30.4 | K55: 179 | L55: 0.07 | M55: 0.78 | N55: 0.03 | O55: 0.06 | P55: 80.34 | Q55: 84.3 | R55: 14.42 | S55: 0.39
B56: Крупа манная | T56: 33 | U56: 42 | V56: =(T56*U56)/1000 -> 1.386
B57: Молоко | T57: 60 | U57: 42 | V57: =(T57*U57)/1000 -> 2.520
B58: Масло сливочное | T58: 5 | U58: 429 | V58: 2.145
B59: Сахар | T59: 4 | U59: 51 | V59: 0.204
B60: Соль | T60: 1 | U60: 10.23 | V60: 0.010
B61: Итого | V61: =V56+V57+V58+V59+V60 -> 6.265
A62: 943/2013 Сб.рец. | B62: Чай с медом | F62: 200 | H62: 0.26 | I62: 0.05 | J62: 6.57 | K62: 25.1 | L62: 0 | M62: 0.26 | N62: 0 | O62: 0.5 | P62: 6.07 | Q62: 9.68 | R62: 4.64 | S62: 0.88
B63: Заварка | T63: 1 | U63: 530 | V63: =(T63*U63)/1000 -> 0.53
B64: Мед натуральный | T64: 8 | U64: 363 | V64: =(T64*U64)/1000 -> 2.904
B65: Итого | V65: =V63+V64 -> 3.434
B66: Хлеб в/с | F66: 40 | H66: 3.48 | I66: 0.6 | J66: 16 | K66: 83.6 | L66: 0.1 | M66: 0 | N66: 0 | O66: 0.66 | P66: 13.2 | Q66: 93.6 | R66: 26.4 | S66: 1.76 | T66: 40 | U66: 62 | V66: =(T66*U66)/1000 -> 2.480
B67: Итого за завтрак: | H67: =H54+H55+H62+H66 -> 9.55 | I67: =I54+I55+I62+I66 -> 6.51 | J67: 66.7 | K67: 347.1 | L67: 0.21 | M67: 218.84 | N67: 0.03 | O67: 1.44 | P67: 120.73 | Q67: 202.1 | R67: 57.34 | S67: 5.93 | V67: =V54+V61+V65+V66 -> 30.179
B68: Второй завтрак
A69: 139/2004 Сб.рец. | B69: Суп гороховый | F69: 200 | H69: 5.44 | I69: 3.56 | J69: 18.94 | K69: 123 | L69: 0.22 | M69: 8.93 | N69: 0 | O69: 0.34 | P69: 33.29 | Q69: 96.81 | R69: 34.33 | S69: 1.82
B70: Картофель | T70: 54 | U70: 22 | V70: =(T70*U70)/1000 -> 1.188
B71: Горох | T71: 20 | U71: 30 | V71: =(T71*U71)/1000 -> 0.600
B72: Лук репчатый | T72: 9 | U72: 42 | V72: 0.378
B73: Морковь | T73: 10 | U73: 42 | V73: 0.420
B74: Масло растительное | T74: 3 | U74: 146 | V74: 0.438
B75: Соль | T75: 1 | U75: 10.23 | V75: 0.010
B76: Итого | V76: =V70+V71+V72+V73+V74+V75 -> 3.034
A77: 180-182стр Сб.рец. | B77: Вак балеш | F77: 90 | H77: 9.4 | I77: 10.69 | J77: 32.11 | K77: 259 | L77: 0.13 | M77: 0.84 | N77: 0.06 | O77: 0.02 | P77: 40.89 | Q77: 121.44 | R77: 26.89 | S77: 1.25
B78: Мука пшеничная | T78: 31 | U78: 31 | V78: =T78*U78/1000 -> 0.961
B79: в т.ч. Мука на подпыл | T79: 1 | U79: 31 | V79: =T79*U79/1000 -> 0.031
B80: Яйца | T80: 3 | U80: 165 | V80: 0.495
B81: Масло сливочное | T81: 3 | U81: 429 | V81: 1.287
B82: Молоко | T82: 13 | U82: 42 | V82: 0.546
B83: Сахар | T83: 1 | U83: 51 | V83: 0.051
B84: Дрожжи | T84: 1 | U84: 341 | V84: 0.341
B85: Соль | T85: 0.4 | U85: 10.23 | V85: 0.004
B86: Мясо без костей | T86: 23 | U86: 506 | V86: 11.638
B87: Крупа рисовая | T87: 10 | U87: 53.9 | V87: 0.539
B88: Лук репчатый | T88: 8 | U88: 42 | V88: 0.336
B89: Масло сливочное | T89: 7 | U89: 429 | V89: 3.003
B90: Соль | T90: 1 | U90: 10.23 | V90: 0.010
B91: Яйцо для смазки изделий | T91: 1 | U91: 165 | V91: 0.165
B92: Масло сливочное для смазки готовых изделий | T92: 1 | U92: 429 | V92: 0.429
B93: Масло растительное для смазки листов | T93: 0.2 | U93: 146 | V93: 0.029
B94: Итого | V94: =SUM(V78:V93) -> 19.866
A95: 867/2013 Сб.рец. | B95: Компот из урюка | F95: 200 | H95: 0.22 | I95: 0 | J95: 9.47 | K95: 36.5 | L95: 0 | M95: 0.18 | N95: 0 | O95: 0.4 | P95: 9.87 | Q95: 6.78 | R95: 2.64 | S95: 0.54
B96: Урюк | T96: 10 | U96: 242 | V96: =(T96*U96)/1000 -> 2.420
B97: Сахар | T97: 10 | U97: 51 | V97: =(T97*U97)/1000 -> 0.510
B98: Итого | V98: =V96+V97 -> 2.930
B99: Хлеб р/ж | F99: 40 | H99: 2.64 | I99: 0.48 | J99: 14.12 | K99: 72.4 | L99: 0.08 | M99: 0 | N99: 0 | O99: 0.4 | P99: 14 | Q99: 63.2 | R99: 18.8 | S99: 1.56 | T99: 40 | U99: 62 | V99: =(T99*U99)/1000 -> 2.480
B100: Итого за второй завтрак: | H100: =H69+H77+H95+H99 -> 17.7 | I100: =I69+I77+I95+I99 -> 14.73 | J100: 74.64 | K100: 490.9 | L100: 0.43 | M100: 9.95 | N100: 0.06 | O100: 1.16 | P100: 98.05 | Q100: 288.23 | R100: 82.66 | S100: 5.17 | V100: =V76+V94+V98+V99 -> 28.310
B101: ИТОГО ЗА 2 ДЕНЬ: | H101: =H67+H100 -> 27.25 | I101: 21.24 | J101: 141.34 | K101: 838 | L101: 0.64 | M101: 228.79 | N101: 0.09 | O101: 2.6 | P101: 218.78 | Q101: 490.33 | R101: 140 | S101: 11.1 | V101: =V67+V100 -> 58.489
B102: 3-й день
B103: Завтрак
A104: 15/2011 ДеЛи | B104: Сыр | F104: 15 | H104: 3.56 | I104: 4.39 | J104: 0 | K104: 54.3 | L104: 0 | M104: 0.35 | N104: 3.02 | O104: 0.21 | P104: 131.04 | Q104: 69.12 | R104: 0 | S104: 0 | T104: 15 | U104: 418 | V104: =(T104*U104)/1000 -> 6.27
A105: 384/2013 Сб.рец. | B105: Каша рисовая молочная со слив.маслом | F105: 150/5 | H105: 4.12 | I105: 5.33 | J105: 31.44 | K105: 178 | L105: 0.05 | M105: 0.78 | N105: 0.03 | O105: 0.2 | P105: 76.35 | Q105: 105.26 | R105: 24.81 | S105: 0.38
B106: Крупа рисовая | T106: 33 | U106: 53.9 | V106: =(T106*U106)/1000 -> 1.779
B107: Молоко | T107: 60 | U107: 42 | V107: =(T107*U107)/1000 -> 2.520
B108: Соль | T108: 1 | U108: 10.23 | V108: 0.010
B109: Сахар | T109: 4 | U109: 51 | V109: 0.204
B110: Масло сливочное | T110: 5 | U110: 429 | V110: 2.145
B111: Итого | V111: =SUM(V106:V110) -> 6.658
A112: 944/2013 Сб.рец. | B112: Чай с медом | F112: 200 | H112: 0.26 | I112: 0.05 | J112: 6.57 | K112: 25.1 | L112: 0 | M112: 0.26 | N112: 0 | O112: 0.5 | P112: 6.07 | Q112: 9.68 | R112: 4.64 | S112: 0.88
B113: Заварка | T113: 1 | U113: 530 | V113: =(T113*U113)/1000 -> 0.53
B114: Мед натуральный | T114: 8 | U114: 363 | V114: =(T114*U114)/1000 -> 2.904
B115: Итого | V115: =SUM(V113:V114) -> 3.434
B116: Хлеб в/с | F116: 40 | H116: 3.48 | I116: 0.6 | J116: 16 | K116: 83.6 | L116: 0.1 | M116: 0 | N116: 0 | O116: 0.66 | P116: 13.2 | Q116: 93.6 | R116: 26.4 | S116: 1.76 | T116: 40 | U116: 62 | V116: =(T116*U116)/1000 -> 2.480
B117: Итого за завтрак: | H117: =H104+H105+H112+H116 -> 11.42 | I117: 10.37 | J117: 54.01 | K117: 341 | L117: 0.15 | M117: 1.39 | N117: 3.05 | O117: 1.57 | P117: 226.66 | Q117: 277.66 | R117: 55.85 | S117: 3.02 | V117: =V104+V111+V115+V116 -> 18.842
B118: Второй завтрак
A119: 197:178/2013 Сб.рец. | B119: Рассольник Петербургский с мясными фрикадельками | F119: 250/40 | H119: 11.72 | I119: 10.29 | J119: 19.26 | K119: 213 | L119: 0.14 | M119: 17.46 | N119: 0.01 | O119: 0.42 | P119: 25.7 | Q119: 159.15 | R119: 40.13 | S119: 1.64
B120: Картофель | T120: 100 | U120: 22 | V120: =U120*T120/1000 -> 2.200
B121: Крупа перловая | T121: 7 | U121: 27 | V121: =U121*T121/1000 -> 0.189
B122: Морковь | T122: 13 | U122: 42 | V122: 0.546
B123: Лук репчатый | T123: 6 | U123: 42 | V123: 0.252
B124: Помидоры соленые | T124: 17 | U124: 83.33 | V124: 1.417
B125: Масло растительное | T125: 5 | U125: 146 | V125: 0.730
B126: Соль | T126: 1 | U126: 10.23 | V126: 0.010
B127: Итого | V127: =SUM(V120:V126) -> 5.344
B128: Фрикадельки мясные
B129: Мясо без костей | T129: 46 | U129: 506 | V129: =T129*U129/1000 -> 23.276
B130: Лук репчатый | T130: 4 | U130: 42 | V130: =T130*U130/1000 -> 0.168
B131: Яйцо | T131: 3 | U131: 165 | V131: 0.495
B132: Соль | T132: 1 | U132: 10.23 | V132: 0.010
B133: Итого | V133: =SUM(V129:V132) -> 23.949
A134: 861/2013 Сб.рец. | B134: Компот из свежих яблок | F134: 200 | H134: 0.1 | I134: 0.09 | J134: 10.27 | K134: 40.2 | L134: 0.01 | M134: 36.3 | N134: 0 | O134: 1.01 | P134: 3.68 | Q134: 2.42 | R134: 1.98 | S134: 0.51
B135: Яблоки | T135: 25 | U135: 120 | V135: =(T135*U135)/1000 -> 3.000
B136: Сахар | T136: 8 | U136: 51 | V136: =(T136*U136)/1000 -> 0.408
B137: Итого | V137: =SUM(V135:V136) -> 3.408
B138: Хлеб р/ж | F138: 40 | H138: 2.64 | I138: 0.48 | J138: 14.12 | K138: 72.4 | L138: 0.08 | M138: 0 | N138: 0 | O138: 0.4 | P138: 14 | Q138: 63.2 | R138: 18.8 | S138: 1.56 | T138: 40 | U138: 62 | V138: =(T138*U138)/1000 -> 2.480
B139: Итого за второй затрак: | H139: =H119+H134+H138 -> 14.46 | I139: =I119+I134+I138 -> 10.86 | J139: 43.65 | K139: 325.6 | L139: 0.23 | M139: 53.76 | N139: 0.01 | O139: 1.83 | P139: 43.38 | Q139: 224.77 | R139: 60.91 | S139: 3.71 | V139: =V127+V133+V137+V138 -> 35.181
B140: ИТОГО ЗА 3 ДЕНЬ: | H140: =H117+H139 -> 25.88 | I140: 21.23 | J140: 97.66 | K140: 666.6 | L140: 0.38 | M140: 55.15 | N140: 3.06 | O140: 3.4 | P140: 270.04 | Q140: 502.43 | R140: 116.76 | S140: 6.73 | V140: =V117+V139 -> 54.023
B141: 4-й день
B142: Завтрак
A143: 469/2013 Сб.рец. | B143: Запеканка из творога | F143: 75 | H143: 12.51 | I143: 9.38 | J143: 10.26 | K143: 172 | L143: 0.04 | M143: 0.35 | N143: 0.04 | O143: 0.56 | P143: 116.38 | Q143: 160.83 | R143: 17.48 | S143: 0.37
B144: Творог | T144: 70 | U144: 198 | V144: =(T144*U144)/1000 -> 13.860
B145: Крупа манная | T145: 5 | U145: 42 | V145: =(T145*U145)/1000 -> 0.210
B146: Сахар | T146: 5 | U146: 51 | V146: 0.255
B147: Яйца | T147: 4 | U147: 165 | V147: 0.660
B148: Масло растительное | T148: 2 | U148: 146 | V148: 0.292
B149: Масло сливочное | T149: 3 | U149: 429 | V149: 1.287
B150: Мука пшеничная | T150: 3 | U150: 31 | V150: =(T150*U150)/1000 -> 0.093
B151: Итого | V151: =SUM(V144:V150) -> 16.657
A152: 944/2013 Сб.рец. | B152: Чай с медом | F152: 200 | H152: 0.26 | I152: 0.05 | J152: 6.57 | K152: 25.1 | L152: 0 | M152: 0.26 | N152: 0 | O152: 0.5 | P152: 6.07 | Q152: 9.68 | R152: 4.64 | S152: 0.88
B153: Заварка | T153: 1 | U153: 530 | V153: =(T153*U153)/1000 -> 0.53
B154: Мед натуральный | T154: 8 | U154: 363 | V154: =(T154*U154)/1000 -> 2.904
B155: Итого | V155: =SUM(V153:V154) -> 3.434
B156: Хлеб в/с | F156: 40 | H156: 3.48 | I156: 0.6 | J156: 16 | K156: 83.6 | L156: 0.1 | M156: 0 | N156: 0 | O156: 0.66 | P156: 13.2 | Q156: 93.6 | R156: 26.4 | S156: 1.76 | T156: 40 | U156: 62 | V156: =(T156*U156)/1000 -> 2.480
B157: Итого за завтрак: | H157: =H143+H152+H156 -> 16.25 | I157: 10.03 | J157: 32.83 | K157: 280.7 | L157: 0.14 | M157: 0.61 | N157: 0.04 | O157: 1.72 | P157: 135.65 | Q157: 264.11 | R157: 48.52 | S157: 3.01 | V157: =V151+V155+V156 -> 22.571
B158: Второй завтрак
A159: 92/2013 Сб.рец. | B159: Салат из моркови | F159: 60 | H159: 0.85 | I159: 4.05 | J159: 4.36 | K159: 53.6 | L159: 0.03 | M159: 2.6 | N159: 0 | O159: 1.82 | P159: 26.52 | Q159: 28.6 | R159: 19.76 | S159: 0.36
B160: Морковь | T160: 65 | U160: 42 | V160: =T160*U160/1000 -> 2.730
B161: Масло растительное | T161: 4 | U161: 146 | V161: =T161*U161/1000 -> 0.584
B162: Сахар | T162: 1 | U162: 51 | V162: =T162*U162/1000 -> 0.051
B163: Итого | V163: =SUM(V160:V162) -> 3.365
A164: 510/2013 Сб.рец. | B164: Котлеты из рыбы | F164: 50 | H164: 10.99 | I164: 5.28 | J164: 7.48 | K164: 106 | L164: 0.08 | M164: 0.42 | N164: 0.01 | O164: 0.17 | P164: 11.71 | Q164: 83.85 | R164: 15.3 | S164: 0.72
B165: Рыба свежая (филе) | T165: 44 | U165: 476 | V165: =(T165*U165)/1000 -> 20.944
B166: Хлеб пшеничный | T166: 9 | U166: 62 | V166: 0.558
B167: Мука пшеничная | T167: 5 | U167: 31 | V167: 0.155
B168: Яйца | T168: 3 | U168: 165 | V168: 0.495
B169: Соль | T169: 1 | U169: 10.23 | V169: 0.010
B170: Масло растительное | T170: 3 | U170: 146 | V170: 0.438
B171: Лук репчатый | T171: 5 | U171: 42 | V171: 0.210
B172: Итого | V172: =SUM(V165:V171) -> 22.810
A173: 378/2013 Сб.рец. | B173: Каша гречневая рассыпчатая со слив.маслом | F173: 150/7 | H173: 5.69 | I173: 5.89 | J173: 32.73 | K173: 186 | L173: 0.15 | M173: 0 | N173: 0.03 | O173: 0.4 | P173: 37.01 | Q173: 168.38 | R173: 127.74 | S173: 4.13
B174: Крупа гречка | T174: 51 | U174: 83 | V174: =(T174*U174)/1000 -> 4.233
B175: Масло сливочное | T175: 7 | U175: 429 | V175: =(T175*U175)/1000 -> 3.003
B176: Соль | T176: 1 | U176: 10.23 | V176: =(T176*U176)/1000 -> 0.010
B177: Итого | V177: =SUM(V174:V176) -> 7.246
A178: 867/2013 Сб.рец. | B178: Компот из урюка | F178: 200 | H178: 0.22 | I178: 0 | J178: 9.47 | K178: 36.5 | L178: 0 | M178: 0.18 | N178: 0 | O178: 0.4 | P178: 9.87 | Q178: 6.78 | R178: 2.64 | S178: 0.54
B179: Урюк | T179: 10 | U179: 242 | V179: =(T179*U179)/1000 -> 2.420
B180: Сахар | T180: 10 | U180: 51 | V180: =(T180*U180)/1000 -> 0.510
B181: Итого | V181: =SUM(V179:V180) -> 2.930
B182: Хлеб р/ж | F182: 40 | H182: 2.64 | I182: 0.48 | J182: 14.12 | K182: 72.4 | L182: 0.08 | M182: 0 | N182: 0 | O182: 0.4 | P182: 14 | Q182: 63.2 | R182: 18.8 | S182: 1.56 | T182: 40 | U182: 62 | V182: =(T182*U182)/1000 -> 2.480
B183: Итого за второй завтрак: | H183: =H159+H164+H173+H178+H182 -> 20.39 | I183: 15.7 | J183: 68.16 | K183: 454.5 | L183: 0.339 | M183: 3.2 | N183: 0.04 | O183: 3.19 | P183: 99.11 | Q183: 350.81 | R183: 184.24 | S183: 7.31 | V183: =V163+V172+V177+V181+V182 -> 38.831
B184: ИТОГО ЗА 4 ДЕНЬ: | H184: =H157+H183 -> 36.64 | I184: 25.73 | J184: 100.99 | K184: 735.2 | L184: 0.479 | M184: 3.81 | N184: 0.08 | O184: 4.91 | P184: 234.76 | Q184: 614.92 | R184: 232.76 | S184: 10.32 | V184: =V157+V183 -> 61.402
B185: 5-й день
B186: Завтрак
A187: 384/2013 Сб.рец. | B187: Каша пшенная молочная со слив.маслом | F187: 150/5 | H187: 6.1 | I187: 6.21 | J187: 33.82 | K187: 203 | L187: 0.18 | M187: 0.86 | N187: 0.03 | O187: 0.21 | P187: 84.15 | Q187: 142.32 | R187: 39 | S187: 1.07
B188: Крупа пшено | T188: 37 | U188: 37 | V188: =(T188*U188)/1000 -> 1.369
B189: Молоко | T189: 60 | U189: 42 | V189: =(T189*U189)/1000 -> 2.520
B190: Сахар | T190: 4 | U190: 51 | V190: =(T190*U190)/1000 -> 0.204
B191: Масло сливочное | T191: 5 | U191: 429 | V191: =(T191*U191)/1000 -> 2.145
B192: Соль | T192: 1 | U192: 10.23 | V192: =(T192*U192)/1000 -> 0.010
B193: Итого | V193: =SUM(V188:V192) -> 6.248
A194: 943/2013 Сб.рец. | B194: Чай с медом | F194: 200 | H194: 0.26 | I194: 0.05 | J194: 6.57 | K194: 25.1 | L194: 0 | M194: 0.26 | N194: 0 | O194: 0.5 | P194: 6.07 | Q194: 9.68 | R194: 4.64 | S194: 0.88
B195: Заварка | T195: 1 | U195: 530 | V195: =(T195*U195)/1000 -> 0.53
B196: Мед натуральный | T196: 8 | U196: 363 | V196: =(T196*U196)/1000 -> 2.904
B197: Итого | V197: =SUM(V195:V196) -> 3.434
B198: Хлеб в/с | F198: 40 | H198: 3.48 | I198: 0.6 | J198: 16 | K198: 83.6 | L198: 0.1 | M198: 0 | N198: 0 | O198: 0.66 | P198: 13.2 | Q198: 93.6 | R198: 26.4 | S198: 1.76 | T198: 40 | U198: 62 | V198: =(T198*U198)/1000 -> 2.480
B199: Итого за завтрак: | H199: =H187+H194+H198 -> 9.84 | I199: =I187+I194+I198 -> 6.86 | J199: 56.39 | K199: 311.7 | L199: 0.28 | M199: 1.12 | N199: 0.03 | O199: 1.37 | P199: 103.42 | Q199: 245.6 | R199: 70.04 | S199: 3.71 | V199: =V193+V197+V198 -> 12.162
B200: Второй завтрак
A201: 82/2013 Сб.рец. | B201: Салат "Витаминный" | F201: 60 | H201: 1.03 | I201: 3.08 | J201: 4.89 | K201: 48.3 | L201: 0.02 | M201: 35.06 | N201: 0 | O201: 0.33 | P201: 23.81 | Q201: 17.03 | R201: 9.83 | S201: 0.52
... 298 more rows

Sheet Лист1
